Cogmind - Beta 14 @@@ ROGUE MODE // 2024.08.31 @ 11:35:06 Player: Unit6544 Result: Destroyed by S-10 Pest with Light Assault Rifle Performance ------------- Evolutions (1) 500 Regions Visited (2) 400 Robots Destroyed (11) 55 Value Destroyed (289) 289 Prototype IDs (2) 40 Alien Tech Used (0) 0 Bonus (0) 0 TOTAL SCORE: 1284 Bonus ------- None Cogmind --------- Core Integrity 0/400 Matter 300/300 Energy 100/100 System Corruption 0% Temperature Cool (0) Movement Core (100) Ox1 Location -9/Materials Parts ------- > --- POWER (1) -------- (None) > --- PROPULSION (2) --- (None) > --- UTILITY (4) ------ Small Storage Unit Terrain Scan Processor > --- WEAPON (2) ------- (None) > --- INVENTORY (8) ---- Aluminum Leg Flight Unit Peak State ------------ > --- POWER ------------ Ion Engine > --- PROPULSION ------- Backup Propulsion I Backup Propulsion I > --- UTILITY ---------- Small Storage Unit Sensor Array > --- WEAPON ----------- Small Laser Light Assault Rifle > --- INVENTORY -------- Ion Engine Flight Unit Small Laser [Rating: 7] Favorites ----------- Power Ion Engine Engine Ion Engine Propulsion Compact Wheel Wheel Compact Wheel Hover Unit Backup Propulsion I Flight Unit Flight Unit Utility Small Storage Unit Device Sensor Array Storage Small Storage Unit Processor Terrain Scan Processor Weapon Light Assault Rifle Energy Gun Small Laser Ballistic Gun Light Assault Rifle Special Melee Weapon Datajack Build | -11 -10 -9 ------- Run | Yrd Mat Mat Slots Evolved 2 | . . 2 Power . | . . . Propulsion . | . . . Utility 2 | . . 2 Weapon . | . . . Parts Attached 17 | 3 10 4 Power 3 | 1 1 1 Engine 3 | 1 1 1 Core . | . . . Reactor . | . . . Propulsion 3 | 2 . 1 Treads . | . . . Leg . | . . . Wheel 2 | 2 . . Hover . | . . . Flight 1 | . . 1 Utility 5 | . 4 1 Device 3 | . 3 . Storage 1 | . 1 . Processor 1 | . . 1 Hackware . | . . . Protection . | . . . Artifact . | . . . Weapon 6 | . 5 1 Energy Gun 2 | . 1 1 Energy Cannon . | . . . Ballistic Gun 2 | . 2 . Ballistic Cannon . | . . . Launcher . | . . . Special Weapon . | . . . Impact Weapon . | . . . Slashing Weapon . | . . . Piercing Weapon . | . . . Special Melee Weapon 2 | . 2 . Unidentified Prototypes . | . . . Parts Lost 11 | . 5 6 Power 3 | . 1 2 Propulsion 3 | . 3 . Utility 2 | . 1 1 Weapon 3 | . . 3 Highest Loss Streak 4 | . 3 4 To Critical Strikes . | . . . Average Slot Usage (%) 65 | . 71 57 Engine 11 | . 13 9 Wheel 3 | . 6 . Hover 1 | . 2 . Device 9 | . 10 8 Storage 12 | . 14 11 Processor 3 | . . 9 Energy Gun 9 | . 9 10 Ballistic Gun 10 | . 11 8 Special Melee Weapon 1 | . 3 . Peak Build Rating 7 | 3 7 7 Average Rating 5 | 1 5 6 On Entrance 3 | . 3 6 Naked Turns . | . . . Heaviest Build 13 | 3 13 13 Greatest Support 26 | 26 26 3 Greatest Overweight (x) 4 | . 4 4 Average Overweight (x) 2 | . 1 3 Largest Inventory Capacity 8 | 5 8 8 Average Capacity 7 | 5 8 8 Most Carried 6 | 5 6 4 Average Carried 3 | 2 3 2 Final Capacity 8 | 5 8 8 Final Carried 3 | 3 3 2 Class Distribution -------------------- 100% | Mutant Dominant Class ---------------- Mutant | -10/Materials Mutant | -9/Materials Resources | -11 -10 -9 ----------- Run | Yrd Mat Mat Matter Collected 367 | 230 106 31 Remotely . | . . . Salvage Created 382 | . 232 150 Parts 20 | . 12 8 Haulers Intercepted . | . . . Recyclers Shooed 1 | . 1 . Parts Field Recycled . | . . . Retrieved Matter . | . . . Parts Self-Destructed . | . . . Prevented . | . . . Kills | -11 -10 -9 ------- Run | Yrd Mat Mat Combat Hostiles Destroyed 11 | . 7 4 Guns 11 | . 7 4 Classes Destroyed 3 | . 2 1 Swarmer 4 | . 3 1 Grunt 6 | . 4 2 Sentry 1 | . . 1 Best Kill Streak 4 | . 4 4 Combat Bots Only 4 | . 4 4 Max Kills in Single Turn 1 | . 1 1 Gunslinging . | . . . Exploded . | . . . Melee . | . . . Uniques/NPCs Destroyed . | . . . Combat | -11 -10 -9 -------- Run | Yrd Mat Mat Hostile Shots Fired 182 | . 81 101 Missed 47 | . 22 25 Damage Taken 1292 | . 574 718 Core 611 | . 206 405 Absorbed by Shields . | . . . Core Remaining (%) 58 | 100 17 . Volleys Fired 49 | . 27 22 Largest 2 | . 2 2 Hottest 80 | . 60 80 Shots Fired 69 | . 40 29 Gun 69 | . 40 29 Cannon . | . . . Launcher . | . . . Special . | . . . Kinetic 32 | . 27 5 Thermal 37 | . 13 24 Explosive . | . . . Electromagnetic . | . . . Robot Hit Streak 19 | . 13 19 Robot Miss Streak 4 | . 4 2 Penetration Max . | . . . Secondary Targets 1 | . 1 . Max Gunslinging Chain 1 | . 1 . Shots Hit Robots 53 | . 30 23 Core Hits 26 | . 17 9 Critical Kills . | . . . Critical Parts Destroyed . | . . . Critical Strikes . | . . . Melee Attacks 3 | . 3 . Impact . | . . . Slashing . | . . . Piercing . | . . . Sneak Attacks . | . . . Combat Hostiles . | . . . Follow-up Attacks . | . . . Damage Inflicted 500 | . 248 252 Guns 490 | . 248 242 Cannons . | . . . Explosions . | . . . Melee . | . . . Ramming 10 | . . 10 Kinetic 164 | . 131 33 Thermal 326 | . 117 209 Explosive . | . . . Electromagnetic . | . . . Impact . | . . . Slashing . | . . . Piercing . | . . . Highest Corruption 1 | . 1 . Average Corruption 1 | . 1 . Corruption Purged . | . . . Corruption Blocked . | . . . Effects 3 | . 3 . Matter Fused 1 | . 1 . Parts Fused 1 | . 1 . Data Loss (minor) 1 | . 1 . Overload Shots . | . . . Overflow Damage . | . . . Projectiles . | . . . Explosions . | . . . Melee . | . . . Knockbacks . | . . . Impact . | . . . Kinetic . | . . . Secondary . | . . . Self-Inflicted Damage 4 | . . 4 Shots . | . . . Rammed 3 | . . 3 Targets Rammed 3 | . . 3 Kicked . | . . . Crushed . | . . . Highest Temperature 38 | . 38 23 Average Temperature 17 | . 19 13 Received Heat Transfer 354 | . 204 150 Siege Activations . | . . . Robots Corrupted . | . . . Combat Hostiles . | . . . Parts Fried . | . . . Impact Corruptions . | . . . Robots Melted . | . . . Combat Hostiles . | . . . Parts Melted 2 | . . 2 Heat Transferred 750 | . 275 475 Parts Sabotaged . | . . . Parts Stolen . | . . . Parts Stripped . | . . . Power Chain Reactions . | . . . Alert | -11 -10 -9 ------- Run | Yrd Mat Mat Peak Influence 145 | . 145 135 Initial . | . . . Average 41 | . 61 16 Maximum Alert Level . | . . . Low Security (%) 100 | 100 100 100 Level 1 . | . . . Level 2 . | . . . Level 3 . | . . . Level 4 . | . . . Level 5 . | . . . High Security . | . . . Max Security . | . . . Squads Dispatched 4 | . 4 . Investigation 2 | . 2 . Extermination . | . . . Reinforcement 2 | . 2 . Assault . | . . . Garrison . | . . . Intercept . | . . . Searches Triggered . | . . . Construction Impeded . | . . . Haulers Reinforced . | . . . Active Scanning Responses . | . . . Cargo Convoy Interrupts . | . . . Stealth | -11 -10 -9 --------- Run | Yrd Mat Mat Distress Signals 2 | . 2 . Communications Jammed . | . . . Distress Signals . | . . . Times Spotted 34 | . 16 18 Peak Tracking Total 7 | . 5 7 Tactical Retreats 4 | . 1 3 Traps | -11 -10 -9 ------- Run | Yrd Mat Mat Traps Triggered 1 | . 1 . Indirectly . | . . . Trap Hack Attempts . | . . . Triggered . | . . . Disarmed . | . . . Reprogrammed . | . . . Reused . | . . . Traps Extracted . | . . . Installed . | . . . Triggered . | . . . Machines | -11 -10 -9 ---------- Run | Yrd Mat Mat Machines Disabled . | . . . Max in Single Turn . | . . . Machines Repaired . | . . . Machines Dismantled . | . . . Machines Sabotaged . | . . . Overloaded Fab Kills . | . . . Hacking | -11 -10 -9 --------- Run | Yrd Mat Mat Machines Accessed 8 | . 5 3 Terminals 5 | . 4 1 Fabricators . | . . . Repair Stations 2 | . 1 1 Recycling Units . | . . . Scanalyzers 1 | . . 1 Garrison Access . | . . . Total Hacks 20 | . 15 5 Successful 9 | . 7 2 Failed 11 | . 8 3 Catastrophic . | . . . Database Lockouts . | . . . Manual . | . . . Terminals 16 | . 13 3 Fabricators . | . . . Repair Stations 3 | . 2 1 Recycling Units . | . . . Scanalyzers 1 | . . 1 Garrison Access . | . . . Terminal Hacks 8 | . 6 2 Prototype ID Bank 1 | . . 1 Alert Level 1 | . 1 . Unreport Threat 1 | . 1 . Locate Traps 2 | . 1 1 Investigation Status 1 | . 1 . Registered Components 1 | . 1 . Zone Layout 1 | . 1 . Fabricator Hacks . | . . . Repair Station Hacks 1 | . 1 . Refit 1 | . 1 . Recycling Unit Hacks . | . . . Scanalyzer . | . . . Garrison Access Hacks . | . . . Unauthorized Hacks . | . . . Terminals . | . . . Fabricators . | . . . Repair Stations . | . . . Recycling Units . | . . . Scanalyzers . | . . . Garrison Access . | . . . Data Cores Recovered . | . . . Used . | . . . Hacking Detections 6 | . 4 2 Full Trace Events 2 | . 2 . Feedback Events 1 | . 1 . Corruption 1 | . 1 . Feedback Blocked . | . . . Robot Schematics Acquired . | . . . Robots Built . | . . . Authchips . | . . . Time . | . . . Total Robot Build Rating . | . . . Part Schematics Acquired . | . . . Parts Built . | . . . Authchips . | . . . Time . | . . . Total Part Build Rating . | . . . Parts Repaired . | . . . Time . | . . . Parts Recycled . | . . . Recycled Matter . | . . . Retrieved Matter . | . . . Retrieved Components . | . . . Parts Scanalyzed . | . . . Part Schematics Acquired . | . . . Parts Damaged . | . . . Bothacking | -11 -10 -9 ------------ Run | Yrd Mat Mat Used RIF Installer . | . . . Robots Hacked 1 | . 1 . Non-combat . | . . . Combat 1 | . 1 . Robot Hacks Applied 2 | . 2 . parse_system 2 | . 2 . Relay Couplers Released . | . . . Fabnet Peak Effective % . | . . . Robots Rewired . | . . . Allies Hacked . | . . . Hacks Repelled . | . . . Allies | -11 -10 -9 -------- Run | Yrd Mat Mat Total Allies . | . . . Largest Group . | . . . Highest-Rated Group . | . . . Highest-Rated Ally . | . . . Total Orders . | . . . Ally Attacks . | . . . Total Damage . | . . . Kills . | . . . Allies Corrupted . | . . . Allies Melted . | . . . Intel | -11 -10 -9 ------- Run | Yrd Mat Mat Robot Analysis Total . | . . . Derelict Logs Recovered . | . . . Drone Launches . | . . . Drone Recoveries . | . . . Exploration | -11 -10 -9 ------------- Run | Yrd Mat Mat Turns Passed 1026 | 40 577 409 Spaces Moved 504 | 41 303 160 Core 291 | 14 117 160 Treads . | . . . Legs . | . . . Wheels 178 | 27 151 . Hover 35 | . 35 . Flight . | . . . Fastest Speed 50 | 50 90 100 Average Speed 172 | 76 161 218 Slowest Speed 250 | 90 250 250 Overloaded Moves . | . . . Propulsion Burnouts . | . . . Robots Hopped . | . . . Cave-ins Triggered . | . . . Exploration Rate (%) 22 | 4 49 15 Regions Visited 2 Branch Regions . Pre-discovered Areas . | . . . Known Exits Taken . | . . . Unknown Exits Taken 2 | 1 1 . Scrap Searched . | . . . Spaces Dug . | . . . Terrain Destroyed . | . . . Melee . | . . . Projectile . | . . . AOE . | . . . Terrain Rammed . | . . . Walls Destroyed . | . . . Machines Disabled . | . . . Actions | -11 -10 -9 --------- Run | Yrd Mat Mat Total 600 | 49 358 193 Wait . | . . . Move 502 | 40 302 160 Hop . | . . . Pick Up 18 | 6 10 2 Fast Attach . | . . . Attach 17 | 3 10 4 Detach 3 | . 2 1 Swap . | . . . Drop 5 | . 4 1 Fire 49 | . 27 22 Melee 3 | . 3 . Ram 3 | . . 3 Kick . | . . . Crush . | . . . Escape Stasis . | . . . Rewire . | . . . Trap . | . . . Miscellaneous . | . . . Route ------- -11/Scrapyard -10/Materials -9/Materials History --------- Turn | Location | Event 4 | -11/Scrapyard | Discovered new exit (range 15) 41 | -11/Scrapyard | Entered Materials 285 | -10/Materials | Lost 3 parts (1p1n1u) 316 | -10/Materials | Build established: Mutant 573 | -10/Materials | Core integrity fell below 50% 595 | -10/Materials | Discovered new exit (range 13) 616 | -10/Materials | Core integrity fell below 20% 618 | -10/Materials | Entered another Materials area 618 | -9/Materials | Evolved 2 slots: Utility x2 967 | -9/Materials | Lost 4 parts (1p1u2w) 1007 | -9/Materials | Core integrity fell below 50% 1018 | -9/Materials | Core integrity fell below 20% 1027 | -9/Materials | Destroyed by S-10 Pest with Light Assault Rifle Last Messages --------------- Acquired Aluminum Leg. G-34 Mercenary destroyed. R-06 Scavenger collects Heat Sink. Acquired 31 matter. R-06 Scavenger collects Sml. Laser. C-30 ARC bursts open, deploying its payload. S-10 Pest unfolds itself. S-10 Pest destroyed. R-06 Scavenger collects Flight Unit. K-01 Serf collects debris. C-30 ARC bursts open, deploying its payload. S-10 Pest unfolds itself. K-01 Serf collects debris. K-01 Serf cleans the Terminal. Sml. Laser destroyed. Ion Engine destroyed. Slammed into S-10 Pest. S-10 Pest destroyed. K-01 Serf collects debris. Slammed into S-10 Pest. Map ----- +----------------------------------------------------+ | ?????????????????????????????????????????????????? | | ?????????????????????????????????????????????????? | | ?????????????????????????????????????????????????? | | ?????????????????????????????????????????????????? | | ?????????????????????????????????????????????????? | | ?????????????????????????????????????????????????? | | ?????????????????????????????????????????????????? | | ?????????????????????????????????????????????????? | | ?????????????????????????????????????????????????? | | ?????????????????????????????????????????????????? | | ??????????????????????? ???????????????????????? | | ?????????????????????? Y ???????????????????????? | | ?????????????????????? ???????????????????????? | | ?????????????????????? ???????????????????????? | | ??????????????????????# k???????????????????????? | | ??????????????????????# ???????????????????????? | | ??????????????????????# ???????????????????????? | | ???????????????#??????# #?????????? ???????????? | | ?????????????###a###### #######??## ###????????? | | ?????????????# k #?? #????????? | | ?????????????#^ ### ?????????? | | ?????????????+ ^ k ? ?????????? | | ?????????????? ^ #??? ??????????? | | ????????????????""" #??? ??????????? | | ??????????????? """ #####/####???????? | | ??????????????? """ @ s + #???????? | | ????????????#" ^ w sss ##?# """ #???????? | | ?????????????# ^ #######s #??# "T" #???????? | | ?????????????# """ ??????####/##### %% #???????? | | ????????????? ??""????????# % ####/##???????? | | ??????????????????????????# %+% % #????????? | | ??????????????????????????# ####%#????????? | | ??????????????????????????# #??# #????????? | | ??????????????^???????????# #??# ########## | | ??????????????????????????# #??# | | ??????????????????????????# [#### | | ??????????????????????????# %/% | | ??????????????????????????# *########+###### | | ??????????????????????????############# ## | | ???????????????????????????????????#""" | ## | | ???????????????????????????????????#"R ## | | ???????????????????????????????????#""" """ """ ## | | ???????????????????????????????????#""" """ """ ## | | ???????????????????????????????????#### """ """ ## | | ??????????????????????????????????????# """ """ ## | | ??????????????????????????????????????# ## | | ??????????????????????????????????????##"" ""##### | | ???????????????????????????????????????#""S""#???# | | ???????????????????????????????????????#"""" #???# | | ???????????????????????????????????????#######???# | +----------------------------------------------------+ Best States ------------- Heat Dissipation 28 Energy Generation 10 Energy Capacity 250 Matter Stores 300 Matter Capacity 300 Sight Range 16 Robot Scan Range 14 Terrain Scan Density 85 Evasion (%) 50 Item Schematics ----------------- None Robot Schematics ------------------ None Fabricated ------------ Nothing Alien Tech Used ----------------- None Achievements -------------- None Challenges ------------ None Game ------ Seed ScatterExoskeletonCutter Manual? 0 Play Time 00:15:15 Cumulative 2.9 hours Start 2024.08.31 @ 11:23:15 End 2024.08.31 @ 11:35:06 Sessions 1 Manual Loads 0 Difficulty Rogue Special Mode None Game No. 11 Rogue 11 Adventurer 0 Explorer 0 Win Type - Total 0 Types 0/0/0/0/0/0/0/0/0 Lore% 1 Gallery% 7 Achievement% 8 Wizard Run 0 Options --------- Layout 1 ASCII 0 Keyboard 0 Movement Mouse Keybinds 0 Fullscreen 1 Font 24/Smallcaps Map View 50x40 Zoom Use 0% Tactical HUD 0 Map Filters NONE Filters NONE Steam 1 RUN: 9a7099e1-0b62-4c8b-bf91-83a308c8254a